[Event "*** MasterClass Titled Tuesday Blitz"]
[Site "Chess.com"]
[Date "2017.12.05"]
[Round "9"]
[White "VladDobrov"]
[Black "Tash_Boy"]
[Result "1-0"]
[WhiteElo "2606"]
[BlackElo "2437"]
[TimeControl "180+2"]
[EndTime "16:14:11 PST"]
[Termination "VladDobrov won by resignation"]

1. d4 {[%clk 0:03:01.9]} 1... Nf6 {[%clk 0:03:00.3]} 2. c4 {[%clk 0:03:01.9]}
2... g6 {[%clk 0:03:01]} 3. Nc3 {[%clk 0:03:02.2]} 3... Bg7 {[%clk 0:03:02.6]}
4. Nf3 {[%clk 0:03:00.3]} 4... O-O {[%clk 0:03:02.4]} 5. g3 {[%clk 0:03:01.6]}
5... d6 {[%clk 0:03:04]} 6. Bg2 {[%clk 0:03:01.1]} 6... Nbd7 {[%clk 0:03:05.9]}
7. O-O {[%clk 0:03:00.8]} 7... e5 {[%clk 0:03:07.2]} 8. h3 {[%clk 0:03:01.9]}
8... Re8 {[%clk 0:03:05.8]} 9. e4 {[%clk 0:03:02.3]} 9... exd4 {[%clk
0:03:06.8]} 10. Nxd4 {[%clk 0:03:02.9]} 10... a6 {[%clk 0:03:08.7]} 11. Be3
{[%clk 0:02:47]} 11... Rb8 {[%clk 0:03:09.6]} 12. a4 {[%clk 0:02:47.3]} 12...
Ne5 {[%clk 0:03:03.5]} 13. b3 {[%clk 0:02:46.6]} 13... c5 {[%clk 0:03:04.2]} 14.
Nde2 {[%clk 0:02:46.9]} 14... Be6 {[%clk 0:02:48.5]} 15. Qc2 {[%clk 0:02:39.6]}
15... Qc8 {[%clk 0:02:44.6]} 16. Kh2 {[%clk 0:02:30.8]} 16... Nc6 {[%clk
0:02:29]} 17. Rad1 {[%clk 0:02:30.3]} 17... Rd8 {[%clk 0:02:27.7]} 18. Rd2
{[%clk 0:02:18.1]} 18... Qc7 {[%clk 0:02:19.8]} 19. Rfd1 {[%clk 0:02:18]} 19...
Rd7 {[%clk 0:02:13.3]} 20. Nf4 {[%clk 0:02:06.9]} 20... Re8 {[%clk 0:02:12.6]}
21. f3 {[%clk 0:02:01.6]} 21... h5 {[%clk 0:02:10.2]} 22. h4 {[%clk 0:02:01.8]}
22... Rdd8 {[%clk 0:02:06.3]} 23. Nh3 {[%clk 0:01:56.2]} 23... Nh7 {[%clk
0:02:01.9]} 24. Ng5 {[%clk 0:01:44.4]} 24... Nxg5 {[%clk 0:01:56]} 25. Bxg5
{[%clk 0:01:46.3]} 25... Nd4 {[%clk 0:01:53.2]} 26. Rxd4 {[%clk 0:01:46.2]}
26... Bxd4 {[%clk 0:01:49.8]} 27. Bxd8 {[%clk 0:01:45.8]} 27... Rxd8 {[%clk
0:01:46.1]} 28. Ne2 {[%clk 0:01:47.1]} 28... Bg7 {[%clk 0:01:45.6]} 29. Nf4
{[%clk 0:01:46.9]} 29... Qe7 {[%clk 0:01:45.2]} 30. Bh3 {[%clk 0:01:47.2]} 30...
Bxh3 {[%clk 0:01:32.1]} 31. Kxh3 {[%clk 0:01:49.1]} 31... Be5 {[%clk 0:01:32.2]}
32. Nd5 {[%clk 0:01:49.4]} 32... Qe6+ {[%clk 0:01:31.6]} 33. Kg2 {[%clk
0:01:50.4]} 33... Kh7 {[%clk 0:01:28.6]} 34. Re1 {[%clk 0:01:47]} 34... Bd4
{[%clk 0:01:25.8]} 35. a5 {[%clk 0:01:45.6]} 35... Rf8 {[%clk 0:01:17.9]} 36.
Qd2 {[%clk 0:01:46.4]} 36... Kg7 {[%clk 0:01:09.7]} 37. b4 {[%clk 0:01:46.8]}
37... Kh7 {[%clk 0:01:08.5]} 38. b5 {[%clk 0:01:47.9]} 38... Kg7 {[%clk
0:01:01.6]} 39. bxa6 {[%clk 0:01:48.4]} 39... bxa6 {[%clk 0:01:02.1]} 40. Rb1
{[%clk 0:01:33.5]} 40... Qd7 {[%clk 0:01:02.4]} 41. Qc2 {[%clk 0:01:27.8]} 41...
f5 {[%clk 0:00:43.2]} 42. exf5 {[%clk 0:01:21.9]} 42... Rxf5 {[%clk 0:00:44]}
43. Re1 {[%clk 0:01:18.4]} 43... Rf7 {[%clk 0:00:43.7]} 44. Nf4 {[%clk 0:01:18]}
44... Rf6 {[%clk 0:00:39.8]} 45. Qe4 {[%clk 0:01:07.1]} 45... Be5 {[%clk
0:00:38.8]} 46. Rb1 {[%clk 0:00:52]} 46... Kh6 {[%clk 0:00:33.3]} 47. Rb7 {[%clk
0:00:49.8]} 47... Qa4 {[%clk 0:00:32.7]} 48. Nd5 {[%clk 0:00:46.2]} 48... Qa2+
{[%clk 0:00:27.8]} 49. Kh3 {[%clk 0:00:44.4]} 49... Qa1 {[%clk 0:00:25.3]} 50.
f4 {[%clk 0:00:36.1]} 50... Bd4 {[%clk 0:00:21.2]} 51. Nxf6 {[%clk 0:00:33.7]}
51... Qf1+ {[%clk 0:00:20.5]} 52. Qg2 {[%clk 0:00:33.7]} 52... Qxg2+ {[%clk
0:00:20.2]} 53. Kxg2 {[%clk 0:00:34]} 53... Bxf6 {[%clk 0:00:22.1]} 54. Rb6
{[%clk 0:00:34.4]} 1-0

[Event "*** MasterClass Titled Tuesday Blitz"]
[Site "Chess.com"]
[Date "2017.12.05"]
[Round "9"]
[White "Margency"]
[Black "MFBerna"]
[Result "1-0"]
[WhiteElo "2485"]
[BlackElo "2293"]
[TimeControl "180+2"]
[EndTime "16:14:43 PST"]
[Termination "Margency won by resignation"]

1. e4 {[%clk 0:03:01.9]} 1... c5 {[%clk 0:03:00.7]} 2. Nf3 {[%clk 0:03:02.6]}
2... e6 {[%clk 0:03:01.2]} 3. d4 {[%clk 0:03:04.1]} 3... cxd4 {[%clk 0:03:03.1]}
4. Nxd4 {[%clk 0:03:05.9]} 4... Nc6 {[%clk 0:03:04]} 5. Nc3 {[%clk 0:03:06.7]}
5... Qc7 {[%clk 0:03:04.9]} 6. Be3 {[%clk 0:03:07.8]} 6... a6 {[%clk 0:03:06.3]}
7. Qd2 {[%clk 0:03:08.8]} 7... Nf6 {[%clk 0:03:03.1]} 8. O-O-O {[%clk
0:03:09.7]} 8... Bb4 {[%clk 0:03:02.5]} 9. f3 {[%clk 0:03:10.8]} 9... O-O {[%clk
0:02:57.8]} 10. a3 {[%clk 0:03:09.1]} 10... Ba5 {[%clk 0:02:49.5]} 11. Nb3
{[%clk 0:03:09.4]} 11... Bxc3 {[%clk 0:02:25.9]} 12. Qxc3 {[%clk 0:03:09.7]}
12... d5 {[%clk 0:02:27.8]} 13. Bg5 {[%clk 0:03:00.1]} 13... dxe4 {[%clk
0:02:28.7]} 14. Bxf6 {[%clk 0:03:00.8]} 14... Qf4+ {[%clk 0:02:29]} 15. Kb1
{[%clk 0:02:59.1]} 15... Qxf6 {[%clk 0:02:29.6]} 16. Qxf6 {[%clk 0:02:58.7]}
16... gxf6 {[%clk 0:02:31.5]} 17. fxe4 {[%clk 0:03:00.2]} 17... b6 {[%clk
0:02:17.4]} 18. Be2 {[%clk 0:02:42.6]} 18... Ne5 {[%clk 0:02:15.3]} 19. Rd6
{[%clk 0:02:41.5]} 19... Rb8 {[%clk 0:02:13.1]} 20. Rhd1 {[%clk 0:02:37.6]}
20... a5 {[%clk 0:02:08.9]} 21. Nd4 {[%clk 0:02:36.6]} 21... Bd7 {[%clk
0:01:53.8]} 22. Nf3 {[%clk 0:02:35.2]} 22... Bc8 {[%clk 0:01:28.3]} 23. Nxe5
{[%clk 0:02:28.4]} 23... fxe5 {[%clk 0:01:30.2]} 24. Bf3 {[%clk 0:02:14.9]}
24... Ba6 {[%clk 0:01:26.2]} 25. b3 {[%clk 0:02:09.6]} 25... Rfc8 {[%clk
0:01:19.7]} 26. Kb2 {[%clk 0:02:09]} 26... Rc7 {[%clk 0:01:17.2]} 27. R1d2
{[%clk 0:02:07.8]} 27... Bb5 {[%clk 0:01:15.3]} 28. c4 {[%clk 0:02:07]} 28...
Bc6 {[%clk 0:01:13.5]} 29. b4 {[%clk 0:02:07.5]} 29... axb4 {[%clk 0:01:14.3]}
30. axb4 {[%clk 0:02:07.5]} 30... Kf8 {[%clk 0:01:12]} 31. Kb3 {[%clk
0:02:05.9]} 31... Ke7 {[%clk 0:01:12.6]} 32. R6d3 {[%clk 0:02:01.4]} 32... Ra8
{[%clk 0:01:10.3]} 33. Ra2 {[%clk 0:01:52.4]} 33... Rxa2 {[%clk 0:01:10.2]} 34.
Kxa2 {[%clk 0:01:54.3]} 34... f5 {[%clk 0:00:57.2]} 35. Re3 {[%clk 0:01:48]}
35... Kf6 {[%clk 0:00:40.5]} 36. Kb3 {[%clk 0:01:45.8]} 36... Rd7 {[%clk
0:00:22]} 37. b5 {[%clk 0:01:36.8]} 37... Bb7 {[%clk 0:00:17]} 38. Kb4 {[%clk
0:01:33.7]} 38... Rd4 {[%clk 0:00:17.5]} 39. Kc3 {[%clk 0:01:19.6]} 39... Bxe4
{[%clk 0:00:08.9]} 40. Bxe4 {[%clk 0:01:20.2]} 40... fxe4 {[%clk 0:00:10.8]} 41.
Rh3 {[%clk 0:01:17.5]} 41... Kg6 {[%clk 0:00:10.4]} 42. Rg3+ {[%clk 0:01:11.5]}
42... Kf6 {[%clk 0:00:11.8]} 43. Rg8 {[%clk 0:01:12]} 43... e3 {[%clk
0:00:13.2]} 44. Rg3 {[%clk 0:01:12.2]} 44... Re4 {[%clk 0:00:12.1]} 45. Rf3+
{[%clk 0:01:13.1]} 45... Kg5 {[%clk 0:00:12.5]} 46. Rf1 {[%clk 0:01:13.5]} 46...
e2 {[%clk 0:00:13.5]} 47. Re1 {[%clk 0:01:14.7]} 47... Kf4 {[%clk 0:00:14.8]}
48. Kd3 {[%clk 0:01:15.1]} 48... Re3+ {[%clk 0:00:16.1]} 49. Kd2 {[%clk
0:01:15.3]} 49... Re4 {[%clk 0:00:16.9]} 50. Kd3 {[%clk 0:01:12.1]} 50... Rd4+
{[%clk 0:00:18]} 51. Kxe2 {[%clk 0:01:10.8]} 51... Rxc4 {[%clk 0:00:19.4]} 52.
Rf1+ {[%clk 0:01:08.3]} 52... Ke4 {[%clk 0:00:20.2]} 53. Rf6 {[%clk 0:01:08.1]}
53... Rc2+ {[%clk 0:00:21]} 54. Kf1 {[%clk 0:01:09.3]} 54... Rc1+ {[%clk
0:00:20.8]} 55. Ke2 {[%clk 0:01:10]} 55... Rc2+ {[%clk 0:00:22.1]} 56. Kf1
{[%clk 0:01:11.1]} 56... Ke3 {[%clk 0:00:22.2]} 57. g4 {[%clk 0:01:08.3]} 57...
Rc1+ {[%clk 0:00:09.3]} 58. Kg2 {[%clk 0:01:09.1]} 58... Rc2+ {[%clk 0:00:11.2]}
59. Kg3 {[%clk 0:01:10]} 59... Rc5 {[%clk 0:00:08.9]} 60. Rxe6 {[%clk 0:01:11]}
60... Rxb5 {[%clk 0:00:10.3]} 61. g5 {[%clk 0:01:12.5]} 61... e4 {[%clk
0:00:11.5]} 62. h4 {[%clk 0:01:13.2]} 62... Rb1 {[%clk 0:00:12.5]} 63. h5 {[%clk
0:01:13]} 63... Rg1+ {[%clk 0:00:12]} 64. Kh4 {[%clk 0:01:14.1]} 64... Rh1+
{[%clk 0:00:13.3]} 65. Kg4 {[%clk 0:01:15]} 65... b5 {[%clk 0:00:11.9]} 66. g6
{[%clk 0:01:11.5]} 66... hxg6 {[%clk 0:00:10.1]} 67. hxg6 {[%clk 0:01:13.4]}
67... Rg1+ {[%clk 0:00:11.2]} 68. Kf5 {[%clk 0:01:14.6]} 68... b4 {[%clk
0:00:10]} 69. Rxe4+ {[%clk 0:01:14.8]} 69... Kf3 {[%clk 0:00:10.8]} 70. Rxb4
{[%clk 0:01:15.8]} 1-0

[Event "*** MasterClass Titled Tuesday Blitz"]
[Site "Chess.com"]
[Date "2017.12.05"]
[Round "9"]
[White "evgenysharapov"]
[Black "Gattass"]
[Result "1-0"]
[WhiteElo "2317"]
[BlackElo "2124"]
[TimeControl "180+2"]
[EndTime "16:14:54 PST"]
[Termination "evgenysharapov won by resignation"]

1. e4 {[%clk 0:03:01.9]} 1... c5 {[%clk 0:02:53.1]} 2. Nf3 {[%clk 0:03:02.2]}
2... Nc6 {[%clk 0:02:53.3]} 3. d4 {[%clk 0:03:02.6]} 3... cxd4 {[%clk
0:02:55.2]} 4. Nxd4 {[%clk 0:03:03.5]} 4... Nf6 {[%clk 0:02:56.5]} 5. Nc3 {[%clk
0:03:03.8]} 5... e5 {[%clk 0:02:57.3]} 6. Ndb5 {[%clk 0:03:04.1]} 6... d6 {[%clk
0:02:58]} 7. Bg5 {[%clk 0:03:04.4]} 7... a6 {[%clk 0:02:58.7]} 8. Na3 {[%clk
0:03:05.3]} 8... b5 {[%clk 0:02:59.3]} 9. Nd5 {[%clk 0:03:05.6]} 9... Be7 {[%clk
0:02:59.8]} 10. Bxf6 {[%clk 0:03:05.8]} 10... Bxf6 {[%clk 0:03:01.7]} 11. c3
{[%clk 0:03:06.4]} 11... O-O {[%clk 0:03:02.1]} 12. Nc2 {[%clk 0:03:06.3]} 12...
Rb8 {[%clk 0:03:00.8]} 13. a3 {[%clk 0:03:02.5]} 13... Be6 {[%clk 0:02:58.8]}
14. Ncb4 {[%clk 0:02:55]} 14... Bxd5 {[%clk 0:02:47.7]} 15. Nxd5 {[%clk
0:02:49.1]} 15... Bg5 {[%clk 0:02:41.6]} 16. Bd3 {[%clk 0:02:48.4]} 16... Qd7
{[%clk 0:02:38.5]} 17. O-O {[%clk 0:02:44.1]} 17... Ne7 {[%clk 0:02:27.9]} 18.
Nxe7+ {[%clk 0:02:33.3]} 18... Bxe7 {[%clk 0:02:27.6]} 19. Bc2 {[%clk
0:02:33.4]} 19... Kh8 {[%clk 0:02:12.9]} 20. Bb3 {[%clk 0:02:33.3]} 20... g6
{[%clk 0:02:08.1]} 21. Qd5 {[%clk 0:02:28.6]} 21... f5 {[%clk 0:02:04.1]} 22.
Rad1 {[%clk 0:02:28.2]} 22... Qc7 {[%clk 0:01:55]} 23. Bc2 {[%clk 0:02:04.9]}
23... a5 {[%clk 0:01:42.9]} 24. Rd3 {[%clk 0:01:53.3]} 24... f4 {[%clk
0:01:32.9]} 25. Rfd1 {[%clk 0:01:39.6]} 25... b4 {[%clk 0:01:30]} 26. axb4
{[%clk 0:01:28.1]} 26... axb4 {[%clk 0:01:31.9]} 27. Ba4 {[%clk 0:01:16.7]}
27... bxc3 {[%clk 0:01:19.5]} 28. Rxc3 {[%clk 0:01:15.8]} 28... Qb7 {[%clk
0:01:15.7]} 29. Qxb7 {[%clk 0:01:15.6]} 29... Rxb7 {[%clk 0:01:17.4]} 30. b3
{[%clk 0:01:16.2]} 30... Kg7 {[%clk 0:01:09.9]} 31. Kf1 {[%clk 0:01:16.4]} 31...
Kf6 {[%clk 0:01:10.4]} 32. f3 {[%clk 0:01:11.3]} 32... Rfb8 {[%clk 0:01:07.8]}
33. Ke2 {[%clk 0:01:10.7]} 33... Rb4 {[%clk 0:01:07]} 34. Rc7 {[%clk 0:01:03.7]}
34... Ke6 {[%clk 0:01:04.7]} 35. Bc6 {[%clk 0:00:53.2]} 35... Kf6 {[%clk
0:00:47.9]} 36. Bd5 {[%clk 0:00:52.6]} 36... R4b5 {[%clk 0:00:42.1]} 37. Ra1
{[%clk 0:00:50.1]} 37... Rxb3 {[%clk 0:00:27.9]} 38. Bxb3 {[%clk 0:00:49.2]}
38... Rxb3 {[%clk 0:00:29.8]} 39. Raa7 {[%clk 0:00:43.6]} 39... Rb2+ {[%clk
0:00:30.5]} 40. Kd3 {[%clk 0:00:41.7]} 40... Rxg2 {[%clk 0:00:22.1]} 41. Rxe7
{[%clk 0:00:39.9]} 41... Rf2 {[%clk 0:00:22]} 42. Rxh7 {[%clk 0:00:27.3]} 42...
Rxf3+ {[%clk 0:00:22.2]} 43. Kd2 {[%clk 0:00:25.8]} 43... Re3 {[%clk 0:00:18.4]}
44. Raf7+ {[%clk 0:00:24.7]} 44... Kg5 {[%clk 0:00:17.2]} 45. h4+ {[%clk
0:00:24.4]} 45... Kg4 {[%clk 0:00:18.3]} 46. Rf6 {[%clk 0:00:24.8]} 46... Rxe4
{[%clk 0:00:19]} 47. Rxg6+ {[%clk 0:00:25.3]} 47... Kf3 {[%clk 0:00:20.4]} 48.
Rxd6 {[%clk 0:00:25.2]} 48... Re2+ {[%clk 0:00:21]} 49. Kc3 {[%clk 0:00:23.7]}
49... e4 {[%clk 0:00:22.9]} 50. h5 {[%clk 0:00:24.6]} 50... e3 {[%clk
0:00:23.1]} 51. h6 {[%clk 0:00:25.3]} 51... Rh2 {[%clk 0:00:24.1]} 52. Re7
{[%clk 0:00:24.8]} 52... Ke2 {[%clk 0:00:24.3]} 53. h7 {[%clk 0:00:23.6]} 53...
Kf1 {[%clk 0:00:20.6]} 54. Rd8 {[%clk 0:00:21]} 54... e2 {[%clk 0:00:21.3]} 55.
h8=Q {[%clk 0:00:20.7]} 55... Rxh8 {[%clk 0:00:22.2]} 56. Rxh8 {[%clk 0:00:21]}
56... e1=Q+ {[%clk 0:00:20.2]} 57. Rxe1+ {[%clk 0:00:20.4]} 57... Kxe1 {[%clk
0:00:20.5]} 58. Rf8 {[%clk 0:00:21]} 1-0

[Event "*** MasterClass Titled Tuesday Blitz"]
[Site "Chess.com"]
[Date "2017.12.05"]
[Round "9"]
[White "chessking2151"]
[Black "saraswathii"]
[Result "1-0"]
[WhiteElo "2358"]
[BlackElo "2297"]
[TimeControl "180+2"]
[EndTime "16:14:54 PST"]
[Termination "chessking2151 won by resignation"]

1. e4 {[%clk 0:03:01.9]} 1... c5 {[%clk 0:02:57.4]} 2. Nf3 {[%clk 0:03:03]} 2...
e6 {[%clk 0:02:57.2]} 3. d4 {[%clk 0:03:03.9]} 3... cxd4 {[%clk 0:02:56.4]} 4.
Nxd4 {[%clk 0:03:05.8]} 4... Nf6 {[%clk 0:02:57]} 5. Nc3 {[%clk 0:03:06.7]} 5...
Nc6 {[%clk 0:02:52.8]} 6. Ndb5 {[%clk 0:03:06.4]} 6... Bb4 {[%clk 0:02:52.9]} 7.
a3 {[%clk 0:03:01]} 7... Bxc3+ {[%clk 0:02:49.5]} 8. Nxc3 {[%clk 0:03:02.9]}
8... d5 {[%clk 0:02:49.7]} 9. exd5 {[%clk 0:03:04.8]} 9... exd5 {[%clk 0:02:50]}
10. Bd3 {[%clk 0:03:04.1]} 10... d4 {[%clk 0:02:51.1]} 11. Ne2 {[%clk
0:03:03.8]} 11... O-O {[%clk 0:02:51.4]} 12. O-O {[%clk 0:03:04.7]} 12... Qd5
{[%clk 0:02:49.5]} 13. Nf4 {[%clk 0:03:02.7]} 13... Qd6 {[%clk 0:02:50.1]} 14.
Nh5 {[%clk 0:03:00.5]} 14... Nxh5 {[%clk 0:02:48.3]} 15. Qxh5 {[%clk 0:03:00.3]}
15... h6 {[%clk 0:02:47.7]} 16. Bd2 {[%clk 0:02:50.2]} 16... Bd7 {[%clk
0:02:41.2]} 17. f4 {[%clk 0:02:42.6]} 17... f5 {[%clk 0:02:36.3]} 18. Rae1
{[%clk 0:02:35]} 18... Rae8 {[%clk 0:02:32.8]} 19. Rxe8 {[%clk 0:02:15.8]} 19...
Bxe8 {[%clk 0:02:31.4]} 20. Qf3 {[%clk 0:02:16.8]} 20... Bd7 {[%clk 0:02:22.8]}
21. Re1 {[%clk 0:02:15.3]} 21... a6 {[%clk 0:02:18]} 22. Bc4+ {[%clk 0:01:54.4]}
22... Kh7 {[%clk 0:02:14]} 23. Qd5 {[%clk 0:01:54.7]} 23... Qxd5 {[%clk
0:02:03.8]} 24. Bxd5 {[%clk 0:01:56.6]} 24... Rc8 {[%clk 0:02:04.2]} 25. c3
{[%clk 0:01:48.3]} 25... dxc3 {[%clk 0:01:40.8]} 26. Bxc3 {[%clk 0:01:50.2]}
26... Rc7 {[%clk 0:01:41.7]} 27. Kf2 {[%clk 0:01:46.3]} 27... Kg6 {[%clk
0:01:37.3]} 28. Bf3 {[%clk 0:01:38.6]} 28... b5 {[%clk 0:01:26.7]} 29. Rd1
{[%clk 0:01:37.1]} 29... Be8 {[%clk 0:01:13.5]} 30. Rd6+ {[%clk 0:01:35.6]}
30... Kf7 {[%clk 0:01:10.9]} 31. Rd5 {[%clk 0:01:21.3]} 31... Ne7 {[%clk
0:01:07.3]} 32. Rd6 {[%clk 0:01:17.2]} 32... Nc6 {[%clk 0:00:44.3]} 33. Rd2
{[%clk 0:01:11.7]} 33... Ne7 {[%clk 0:00:41]} 34. Ba5 {[%clk 0:01:08.3]} 34...
Rc4 {[%clk 0:00:39.6]} 35. b3 {[%clk 0:00:50.6]} 35... Rc1 {[%clk 0:00:31.7]}
36. Bb4 {[%clk 0:00:47.7]} 36... Nc6 {[%clk 0:00:30.2]} 37. Bd6 {[%clk
0:00:45.1]} 37... Rc3 {[%clk 0:00:24.6]} 38. Bd5+ {[%clk 0:00:42.8]} 38... Kg6
{[%clk 0:00:23.2]} 39. g3 {[%clk 0:00:25]} 39... Bf7 {[%clk 0:00:20.6]} 40. Bf3
{[%clk 0:00:14]} 40... Bxb3 {[%clk 0:00:17.9]} 41. Bf8 {[%clk 0:00:13.8]} 41...
Kf7 {[%clk 0:00:18]} 42. Bd6 {[%clk 0:00:14.8]} 42... Be6 {[%clk 0:00:18.1]} 43.
Bh5+ {[%clk 0:00:12.4]} 43... g6 {[%clk 0:00:18.8]} 44. Bf3 {[%clk 0:00:13.3]}
44... Ne7 {[%clk 0:00:19.2]} 45. Bb4 {[%clk 0:00:12.7]} 45... Rc1 {[%clk
0:00:19]} 46. Rd6 {[%clk 0:00:13.4]} 46... Rc2+ {[%clk 0:00:16.9]} 47. Kg1
{[%clk 0:00:13.7]} 47... a5 {[%clk 0:00:18.2]} 48. Bxa5 {[%clk 0:00:12.6]} 48...
Nc8 {[%clk 0:00:18.8]} 49. Rc6 {[%clk 0:00:10.5]} 49... Ra2 {[%clk 0:00:19.1]}
50. Rc7+ {[%clk 0:00:10.8]} 50... Kf8 {[%clk 0:00:17.7]} 51. Bb4+ {[%clk
0:00:11.6]} 51... Kg8 {[%clk 0:00:17.9]} 52. Bb7 {[%clk 0:00:12.4]} 52... Nb6
{[%clk 0:00:17.7]} 53. Rc6 {[%clk 0:00:14]} 53... Nc4 {[%clk 0:00:10.5]} 54.
Rxe6 {[%clk 0:00:13.5]} 54... Nxa3 {[%clk 0:00:10.3]} 55. Rxg6+ {[%clk
0:00:12.6]} 55... Kh7 {[%clk 0:00:10.3]} 56. Ra6 {[%clk 0:00:12.9]} 56... Ra1+
{[%clk 0:00:11.6]} 57. Kg2 {[%clk 0:00:14.4]} 57... Nc2 {[%clk 0:00:13.5]} 58.
Rxa1 {[%clk 0:00:14.8]} 58... Nxa1 {[%clk 0:00:15.1]} 59. Bc6 {[%clk 0:00:16.4]}
59... Nc2 {[%clk 0:00:16.1]} 60. Bd2 {[%clk 0:00:17.8]} 60... b4 {[%clk
0:00:17.3]} 61. Ba4 {[%clk 0:00:19.4]} 61... Nd4 {[%clk 0:00:16.7]} 62. Bxb4
{[%clk 0:00:20.5]} 1-0

[Event "*** MasterClass Titled Tuesday Blitz"]
[Site "Chess.com"]
[Date "2017.12.05"]
[Round "9"]
[White "JusticeBot"]
[Black "RaphaeI"]
[Result "0-1"]
[WhiteElo "2538"]
[BlackElo "2525"]
[TimeControl "180+2"]
[EndTime "16:15:07 PST"]
[Termination "RaphaeI won by resignation"]

1. e4 {[%clk 0:03:01.9]} 1... e6 {[%clk 0:02:58.7]} 2. d4 {[%clk 0:03:02.7]}
2... d5 {[%clk 0:02:59.7]} 3. Nd2 {[%clk 0:03:04.3]} 3... c5 {[%clk 0:03:00.7]}
4. exd5 {[%clk 0:03:05.4]} 4... Qxd5 {[%clk 0:03:02.6]} 5. Ngf3 {[%clk
0:03:06.8]} 5... cxd4 {[%clk 0:03:03.8]} 6. Bc4 {[%clk 0:03:07.9]} 6... Qd6
{[%clk 0:03:05.1]} 7. O-O {[%clk 0:03:09.8]} 7... Nf6 {[%clk 0:03:06.5]} 8. Nb3
{[%clk 0:03:11.3]} 8... Nc6 {[%clk 0:03:08.1]} 9. Nbxd4 {[%clk 0:03:10.9]} 9...
Nxd4 {[%clk 0:03:10]} 10. Qxd4 {[%clk 0:03:12.6]} 10... Qxd4 {[%clk 0:03:02.7]}
11. Nxd4 {[%clk 0:03:14.5]} 11... Bd7 {[%clk 0:03:04.6]} 12. Re1 {[%clk
0:03:09.6]} 12... Bc5 {[%clk 0:02:51.8]} 13. Be3 {[%clk 0:03:09.5]} 13... Rc8
{[%clk 0:02:51.3]} 14. Bb3 {[%clk 0:03:05.5]} 14... Ng4 {[%clk 0:02:48.9]} 15.
Nf5 {[%clk 0:02:59.1]} 15... Nxe3 {[%clk 0:02:43.1]} 16. Nxe3 {[%clk 0:02:59.6]}
16... O-O {[%clk 0:02:35.2]} 17. Rad1 {[%clk 0:02:58.8]} 17... Bc6 {[%clk
0:02:36.1]} 18. Nc4 {[%clk 0:02:59.8]} 18... Rfd8 {[%clk 0:02:26.8]} 19. Na5
{[%clk 0:02:28.8]} 19... Rxd1 {[%clk 0:01:40.5]} 20. Rxd1 {[%clk 0:02:30.7]}
20... Be4 {[%clk 0:01:42.4]} 21. c3 {[%clk 0:02:18.6]} 21... b6 {[%clk
0:01:37.3]} 22. Nc4 {[%clk 0:02:17]} 22... Bc6 {[%clk 0:01:33.6]} 23. Ne5 {[%clk
0:02:17]} 23... Bb5 {[%clk 0:01:28.7]} 24. a4 {[%clk 0:02:14.3]} 24... Be8
{[%clk 0:01:29]} 25. Nd7 {[%clk 0:02:15.5]} 25... Be7 {[%clk 0:01:22.3]} 26. Ne5
{[%clk 0:02:02.9]} 26... Rc7 {[%clk 0:01:22.9]} 27. Kf1 {[%clk 0:02:03.4]} 27...
Kf8 {[%clk 0:01:23.7]} 28. Nf3 {[%clk 0:02:02.9]} 28... Bf6 {[%clk 0:01:19.7]}
29. Nd4 {[%clk 0:02:01.7]} 29... Rc5 {[%clk 0:01:14.4]} 30. f4 {[%clk
0:01:56.4]} 30... h5 {[%clk 0:01:10.5]} 31. g3 {[%clk 0:01:57.6]} 31... Ke7
{[%clk 0:00:59.3]} 32. Ke2 {[%clk 0:01:56.9]} 32... g5 {[%clk 0:01:00.2]} 33.
Ke3 {[%clk 0:01:51.2]} 33... Ra5 {[%clk 0:00:44.1]} 34. Bc2 {[%clk 0:01:42.7]}
34... h4 {[%clk 0:00:34.2]} 35. b4 {[%clk 0:01:42]} 35... Rd5 {[%clk 0:00:35.3]}
36. Be4 {[%clk 0:01:42.2]} 36... Rd8 {[%clk 0:00:21.4]} 37. a5 {[%clk
0:01:36.9]} 37... gxf4+ {[%clk 0:00:21.3]} 38. gxf4 {[%clk 0:01:37.6]} 38... Rc8
{[%clk 0:00:21.2]} 39. axb6 {[%clk 0:01:28.1]} 39... axb6 {[%clk 0:00:18.8]} 40.
Rd3 {[%clk 0:01:17.3]} 40... Bg7 {[%clk 0:00:18.1]} 41. Bb7 {[%clk 0:01:12.4]}
41... Rc7 {[%clk 0:00:19]} 42. Ba6 {[%clk 0:01:13.5]} 42... Bh6 {[%clk
0:00:16.6]} 43. Ke4 {[%clk 0:01:13.2]} 43... f6 {[%clk 0:00:16.8]} 44. Re3
{[%clk 0:01:09.2]} 44... Bg6+ {[%clk 0:00:08.5]} 45. Kf3 {[%clk 0:01:10.4]}
45... e5 {[%clk 0:00:08.4]} 46. fxe5 {[%clk 0:01:12.3]} 46... Bxe3 {[%clk
0:00:08.9]} 47. exf6+ {[%clk 0:01:09.9]} 47... Kxf6 {[%clk 0:00:10]} 48. Kxe3
{[%clk 0:01:09.6]} 48... Rxc3+ {[%clk 0:00:11.2]} 49. Kf4 {[%clk 0:01:10.9]}
49... Rh3 {[%clk 0:00:07.9]} 50. Nf3 {[%clk 0:01:11.1]} 50... Bh5 {[%clk
0:00:08.9]} 51. Ng5 {[%clk 0:00:50]} 51... Rxh2 {[%clk 0:00:08.3]} 52. Ne4+
{[%clk 0:00:51.9]} 52... Ke7 {[%clk 0:00:08.8]} 53. Bb7 {[%clk 0:00:50.8]} 53...
Bg6 {[%clk 0:00:07.6]} 54. Nc3 {[%clk 0:00:49.7]} 54... Rb2 {[%clk 0:00:03.8]}
55. Kg5 {[%clk 0:00:49.1]} 55... Bf7 {[%clk 0:00:04]} 56. Kxh4 {[%clk
0:00:45.6]} 56... Rxb4+ {[%clk 0:00:05.1]} 57. Kg5 {[%clk 0:00:47]} 57... Kd6
{[%clk 0:00:06.7]} 58. Ne4+ {[%clk 0:00:47.6]} 58... Kc7 {[%clk 0:00:06.1]} 59.
Kf6 {[%clk 0:00:42.9]} 59... Kxb7 {[%clk 0:00:05.6]} 60. Nd6+ {[%clk 0:00:43.3]}
60... Kc6 {[%clk 0:00:06.9]} 61. Nxf7 {[%clk 0:00:45.2]} 61... Rf4+ {[%clk
0:00:08.1]} 62. Ke6 {[%clk 0:00:46.3]} 62... Rxf7 {[%clk 0:00:10]} 63. Kxf7
{[%clk 0:00:48.2]} 63... b5 {[%clk 0:00:11.1]} 64. Ke6 {[%clk 0:00:49.9]} 64...
b4 {[%clk 0:00:12.2]} 65. Ke5 {[%clk 0:00:51.8]} 65... b3 {[%clk 0:00:11.8]} 66.
Kd4 {[%clk 0:00:53.7]} 66... b2 {[%clk 0:00:13.2]} 67. Kc3 {[%clk 0:00:55.6]}
67... b1=Q {[%clk 0:00:14.6]} 68. Kc4 {[%clk 0:00:57.5]} 68... Qe4+ {[%clk
0:00:15.5]} 0-1